Workbook

Sheet FLEXIÓN
B2: COMPAÑÍA | D2: hdlkdlksanlkdsa | L2: Fecha (dd/mm/aaaa) | O2: ENSAYO DE RESISTENCIA A LA FLEXIÓN (NTC 2871)
B3: PLANTA | D3: lndalkndlksa
B4: OBRA | D4: ndalkndklsa | L4: 2021-04-16
B5: N° Muestra | C5: Tipo de Concreto | D5: Localización | E5: Asentamiento (mm) | F5: Fecha muestra (dd/mm/aaaa) | G5: Fecha ensayo (dd/mm/aaaa) | H5: Edad (Días) | I5: F´c (MPa) | J5: Medidas (mm) | N5: Distancia de apoyo más cercano a la fractura (mm) | O5: Carga máxima (kN) | P5: Esfuerzo (MPa) | S5: Desarrollo (%) | T5: Desarrollo Promedio (%) | U5: Rango (MPa) | V5: Esfuerzo Promedio (MPa) | W5: Precisión (%) | X5: Observaciones | AA5: OCULTAR ESTA COLUMNA
J6: Distancia entre apoyos | K6: Dato | L6: Ancho | M6: Alto | P6: Fallo dentro de tercio medio (R=PL/bd²) | Q6: Fallo dentro del 5% fuera del tercio medio (R=3Pa/bd²) | R6: Fallo fuera del 5% fuera del tercio medio (Se descarta)
B7: 1 | C7: Concreto para pavimento bombeable | D7: Calzada derecha Av. 68 | E7: 152 | F7: 2021-04-11 | G7: =F7+H7 -> 2021-04-18 | H7: 7 | I7: 4.2 | J7: 450 | K7: 1 | L7: 152 | M7: 150 | N7: 220 | O7: 30 | P7: =IF(ISBLANK(J7),0,IF(AND(N10>=J7/3,N10<=((J7/3)+J7/3)),((O7*1000)*J7)/(L10*(M10*M10)),0)) -> 3.964757709 | Q7: =IF(ISBLANK(J7),0,IF(AND(N10<=(J7/3),N10>=((J7/3)-(5%*(J7/3)))),((3*(O7*1000)*N10)/(L10*(M10*M10))),0)) -> 0 | R7: =IF(N10<((J7/3)-(5%*(J7/3))),"DESCARTADO","") ->  | S7: =IF(ISBLANK(I7),0,IF(P7>0,P7/I7*100,Q7/I7*100)) -> 94.39899308 | T7: =IF(S7=0,S11,IF(S11=0,S7,(S7+S11)/2)) -> 96.30002564 | U7: =IF(AA7=0,AA11,IF(AA11=0,AA7,MAX(AA7:AA11)-MIN(AA7:AA11))) -> 0.1596867352 | V7: =IF(AA7=0,AA11,IF(AA11=0,AA7,AVERAGEA(P7,Q7,P11,Q11)*2)) -> 4.044601077 | W7: =IF(U7=0,0,IF(U7="","",U7/V7)*100) -> 3.948145495 | X7: =IF(W7=0,"-",IF(W7<16,"Precisión Conforme","Precisión No Conforme")) -> Precisión Conforme | AA7: =IF(ISBLANK(O7),0,IF(O7="","",MAX(P7:Q10)-MIN(P7:Q10))) -> 3.964757709
K8: 2 | L8: 152 | M8: 150 | N8: 210
K9: 3 | L9: 150 | M9: 150 | N9: 200
K10: Promedio | L10: =IF(ISBLANK(L7:L9),0,(L7+L8+L9)/3) -> 151.3333333 | M10: =IF(ISBLANK(M7:M9),0,(M7+M8+M9)/3) -> 150 | N10: 210
J11: 450 | K11: 1 | L11: 150 | M11: 150 | N11: 145 | O11: 32 | P11: =IF(ISBLANK(J11),0,IF(AND(N14>=J11/3,N14<=((J11/3)+J11/3)),((O11*1000)*J11)/(L14*(M14*M14)),0)) -> 0 | Q11: =IF(ISBLANK(J11),0,IF(AND(N14<=(J11/3),N14>=((J11/3)-(5%*(J11/3)))),((3*(O11*1000)*N14)/(L14*(M14*M14))),0)) -> 4.124444444 | R11: =IF(N14<((J11/3)-(5%*(J11/3))),"DESCARTADO","") ->  | S11: =IF(ISBLANK(I7),0,IF(P11>0,P11/I7*100,Q11/I7*100)) -> 98.2010582 | AA11: =IF(ISBLANK(O11),0,IF(O11="","",MAX(P11:Q14)-MIN(P11:Q14))) -> 4.124444444
K12: 2 | L12: 150 | M12: 150 | N12: 140
K13: 3 | L13: 150 | M13: 150 | N13: 150
K14: Promedio | L14: =IF(ISBLANK(L11:L13),0,(L11+L12+L13)/3) -> 150 | M14: =IF(ISBLANK(M11:M13),0,(M11+M12+M13)/3) -> 150 | N14: =IF(ISBLANK(N11:N13),0,(N11+N12+N13)/3) -> 145
G15: =F15+H15 -> 1900-01-14 | H15: 14 | I15: 4.2 | J15: 450 | K15: 1 | L15: 152 | M15: 153 | N15: 203 | O15: 40 | P15: =IF(ISBLANK(J15),0,IF(AND(N18>=J15/3,N18<=((J15/3)+J15/3)),((O15*1000)*J15)/(L18*(M18*M18)),0)) -> 5.103158137 | Q15: =IF(ISBLANK(J15),0,IF(AND(N18<=(J15/3),N18>=((J15/3)-(5%*(J15/3)))),((3*(O15*1000)*N18)/(L18*(M18*M18))),0)) -> 0 | R15: =IF(N18<((J15/3)-(5%*(J15/3))),"DESCARTADO","") ->  | S15: =IF(ISBLANK(I15),0,IF(P15>0,P15/I15*100,Q15/I15*100)) -> 121.5037652 | T15: =IF(S15=0,S19,IF(S19=0,S15,(S15+S19)/2)) -> 121.5037652 | U15: =IF(AA15=0,AA19,IF(AA19=0,AA15,MAX(AA15:AA19)-MIN(AA15:AA19))) -> 5.103158137 | V15: =IF(AA15=0,AA19,IF(AA19=0,AA15,AVERAGEA(P15,Q15,P19,Q19)*2)) -> 5.103158137 | W15: =IF(U15=0,0,IF(U15="","",U15/V15)*100) -> 100 | X15: =IF(W15=0,"-",IF(W15<16,"Precisión Conforme","Precisión No Conforme")) -> Precisión No Conforme | AA15: =IF(ISBLANK(O15),0,IF(O15="","",MAX(P15:Q18)-MIN(P15:Q18))) -> 5.103158137
K16: 2 | L16: 151 | M16: 152 | N16: 209
K17: 3 | L17: 153 | M17: 152 | N17: 220
K18: Promedio | L18: =IF(ISBLANK(L15:L17),0,(L15+L16+L17)/3) -> 152 | M18: =IF(ISBLANK(M15:M17),0,(M15+M16+M17)/3) -> 152.3333333 | N18: 210.6666667
J19: 450 | K19: 1 | L19: 150 | M19: 151 | N19: 106 | O19: 42 | P19: =IF(ISBLANK(J19),0,IF(AND(N22>=J19/3,N22<=((J19/3)+J19/3)),((O19*1000)*J19)/(L22*(M22*M22)),0)) -> 0 | Q19: =IF(ISBLANK(J19),0,IF(AND(N22<=(J19/3),N22>=((J19/3)-(5%*(J19/3)))),((3*(O19*1000)*N22)/(L22*(M22*M22))),0)) -> 0 | R19: =IF(N22<((J19/3)-(5%*(J19/3))),"DESCARTADO","") -> DESCARTADO | S19: =IF(ISBLANK(I15),0,IF(P19>0,P19/I15*100,Q19/I15*100)) -> 0 | AA19: =IF(ISBLANK(O19),0,IF(O19="","",MAX(P19:Q22)-MIN(P19:Q22))) -> 0
K20: 2 | L20: 150 | M20: 150 | N20: 109
K21: 3 | L21: 150 | M21: 153 | N21: 120
K22: Promedio | L22: =IF(ISBLANK(L19:L21),0,(L19+L20+L21)/3) -> 150 | M22: =IF(ISBLANK(M19:M21),0,(M19+M20+M21)/3) -> 151.3333333 | N22: 111.6666667
G23: =F23+H23 -> 1900-01-28 | H23: 28 | I23: 4.2 | J23: 450 | K23: 1 | L23: 152 | M23: 150 | N23: 140 | O23: 49 | P23: =IF(ISBLANK(J23),0,IF(AND(N26>=J23/3,N26<=((J23/3)+J23/3)),((O23*1000)*J23)/(L26*(M26*M26)),0)) -> 0 | Q23: =IF(ISBLANK(J23),0,IF(AND(N26<=(J23/3),N26>=((J23/3)-(5%*(J23/3)))),((3*(O23*1000)*N26)/(L26*(M26*M26))),0)) -> 6.15009101 | R23: =IF(N26<((J23/3)-(5%*(J23/3))),"DESCARTADO","") ->  | S23: =IF(ISBLANK(I23),0,IF(P23>0,P23/I23*100,Q23/I23*100)) -> 146.4307383 | T23: =IF(S23=0,S27,IF(S27=0,S23,(S23+S27)/2)) -> 149.2702345 | U23: =IF(AA23=0,AA27,IF(AA27=0,AA23,MAX(AA23:AA27)-MIN(AA23:AA27))) -> 0.2385176769 | V23: =IF(AA23=0,AA27,IF(AA27=0,AA23,AVERAGEA(P23,Q23,P27,Q27)*2)) -> 6.269349848 | W23: =IF(U23=0,0,IF(U23="","",U23/V23)*100) -> 3.804504178 | X23: =IF(W23=0,"-",IF(W23<16,"Precisión Conforme","Precisión No Conforme")) -> Precisión Conforme | AA23: =IF(ISBLANK(O23),0,IF(O23="","",MAX(P23:Q26)-MIN(P23:Q26))) -> 6.15009101
K24: 2 | L24: 152 | M24: 153 | N24: 145
K25: 3 | L25: 150 | M25: 151 | N25: 150
K26: Promedio | L26: =IF(ISBLANK(L23:L25),0,(L23+L24+L25)/3) -> 151.3333333 | M26: =IF(ISBLANK(M23:M25),0,(M23+M24+M25)/3) -> 151.3333333 | N26: 145
J27: 450 | K27: 1 | L27: 150 | M27: 150 | N27: 145 | O27: 50 | P27: =IF(ISBLANK(J27),0,IF(AND(N30>=J27/3,N30<=((J27/3)+J27/3)),((O27*1000)*J27)/(L30*(M30*M30)),0)) -> 0 | Q27: =IF(ISBLANK(J27),0,IF(AND(N30<=(J27/3),N30>=((J27/3)-(5%*(J27/3)))),((3*(O27*1000)*N30)/(L30*(M30*M30))),0)) -> 6.388608687 | R27: =IF(N30<((J27/3)-(5%*(J27/3))),"DESCARTADO","") ->  | S27: =IF(ISBLANK(I23),0,IF(P27>0,P27/I23*100,Q27/I23*100)) -> 152.1097306 | AA27: =IF(ISBLANK(O27),0,IF(O27="","",MAX(P27:Q30)-MIN(P27:Q30))) -> 6.388608687
K28: 2 | L28: 150 | M28: 152 | N28: 142
K29: 3 | L29: 150 | M29: 151 | N29: 150
K30: Promedio | L30: =IF(ISBLANK(L27:L29),0,(L27+L28+L29)/3) -> 150 | M30: =IF(ISBLANK(M27:M29),0,(M27+M28+M29)/3) -> 151 | N30: 145.6666667
G31: =F31+H31 -> 1900-01-07 | H31: 7 | I31: 4.2 | J31: 450 | K31: 1 | L31: 150 | M31: 150 | N31: 208 | O31: 30 | P31: =IF(ISBLANK(J31),0,IF(AND(N34>=J31/3,N34<=((J31/3)+J31/3)),((O31*1000)*J31)/(L34*(M34*M34)),0)) -> 3.947195127 | Q31: =IF(ISBLANK(J31),0,IF(AND(N34<=(J31/3),N34>=((J31/3)-(5%*(J31/3)))),((3*(O31*1000)*N34)/(L34*(M34*M34))),0)) -> 0 | R31: =IF(N34<((J31/3)-(5%*(J31/3))),"DESCARTADO","") ->  | S31: =IF(ISBLANK(I31),0,IF(P31>0,P31/I31*100,Q31/I31*100)) -> 93.98083637 | T31: =IF(S31=0,S35,IF(S35=0,S31,(S31+S35)/2)) -> 94.55655575 | U31: =IF(AA31=0,AA35,IF(AA35=0,AA31,MAX(AA31:AA35)-MIN(AA31:AA35))) -> 0.04836042808 | V31: =IF(AA31=0,AA35,IF(AA35=0,AA31,AVERAGEA(P31,Q31,P35,Q35)*2)) -> 3.971375342 | W31: =IF(U31=0,0,IF(U31="","",U31/V31)*100) -> 1.217724942 | X31: =IF(W31=0,"-",IF(W31<16,"Precisión Conforme","Precisión No Conforme")) -> Precisión Conforme | AA31: =IF(ISBLANK(O31),0,IF(O31="","",MAX(P31:Q34)-MIN(P31:Q34))) -> 3.947195127
K32: 2 | L32: 152 | M32: 151 | N32: 199
K33: 3 | L33: 152 | M33: 150 | N33: 180
K34: Promedio | L34: =IF(ISBLANK(L31:L33),0,(L31+L32+L33)/3) -> 151.3333333 | M34: =IF(ISBLANK(M31:M33),0,(M31+M32+M33)/3) -> 150.3333333 | N34: 195.6666667
J35: 450 | K35: 1 | L35: 150 | M35: 150 | N35: 140 | O35: 31 | P35: =IF(ISBLANK(J35),0,IF(AND(N38>=J35/3,N38<=((J35/3)+J35/3)),((O35*1000)*J35)/(L38*(M38*M38)),0)) -> 0 | Q35: =IF(ISBLANK(J35),0,IF(AND(N38<=(J35/3),N38>=((J35/3)-(5%*(J35/3)))),((3*(O35*1000)*N38)/(L38*(M38*M38))),0)) -> 3.995555556 | R35: =IF(N38<((J35/3)-(5%*(J35/3))),"DESCARTADO","") ->  | S35: =IF(ISBLANK(I31),0,IF(P35>0,P35/I31*100,Q35/I31*100)) -> 95.13227513 | AA35: =IF(ISBLANK(O35),0,IF(O35="","",MAX(P35:Q38)-MIN(P35:Q38))) -> 3.995555556
K36: 2 | L36: 150 | M36: 150 | N36: 143
K37: 3 | L37: 150 | M37: 150 | N37: 152
K38: Promedio | L38: =IF(ISBLANK(L35:L37),0,(L35+L36+L37)/3) -> 150 | M38: =IF(ISBLANK(M35:M37),0,(M35+M36+M37)/3) -> 150 | N38: 145
G39: =F39+H39 -> 1900-01-14 | H39: 14 | I39: 4.2 | J39: 450 | K39: 1 | L39: 152 | M39: 151 | N39: 180 | O39: 40 | P39: =IF(ISBLANK(J39),0,IF(AND(N42>=J39/3,N42<=((J39/3)+J39/3)),((O39*1000)*J39)/(L42*(M42*M42)),0)) -> 5.23966531 | Q39: =IF(ISBLANK(J39),0,IF(AND(N42<=(J39/3),N42>=((J39/3)-(5%*(J39/3)))),((3*(O39*1000)*N42)/(L42*(M42*M42))),0)) -> 0 | R39: =IF(N42<((J39/3)-(5%*(J39/3))),"DESCARTADO","") ->  | S39: =IF(ISBLANK(I39),0,IF(P39>0,P39/I39*100,Q39/I39*100)) -> 124.753936 | T39: =IF(S39=0,S43,IF(S43=0,S39,(S39+S43)/2)) -> 125.2870209 | U39: =IF(AA39=0,AA43,IF(AA43=0,AA39,MAX(AA39:AA43)-MIN(AA39:AA43))) -> 0.04477913443 | V39: =IF(AA39=0,AA43,IF(AA43=0,AA39,AVERAGEA(P39,Q39,P43,Q43)*2)) -> 5.262054877 | W39: =IF(U39=0,0,IF(U39="","",U39/V39)*100) -> 0.8509818972 | X39: =IF(W39=0,"-",IF(W39<16,"Precisión Conforme","Precisión No Conforme")) -> Precisión Conforme | AA39: =IF(ISBLANK(O39),0,IF(O39="","",MAX(P39:Q42)-MIN(P39:Q42))) -> 5.23966531
K40: 2 | L40: 152 | M40: 150 | N40: 187
K41: 3 | L41: 150 | M41: 151 | N41: 177
K42: Promedio | L42: =IF(ISBLANK(L39:L41),0,(L39+L40+L41)/3) -> 151.3333333 | M42: =IF(ISBLANK(M39:M41),0,(M39+M40+M41)/3) -> 150.6666667 | N42: 181.3333333
J43: 450 | K43: 1 | L43: 150 | M43: 150 | N43: 145 | O43: 41 | P43: =IF(ISBLANK(J43),0,IF(AND(N46>=J43/3,N46<=((J43/3)+J43/3)),((O43*1000)*J43)/(L46*(M46*M46)),0)) -> 0 | Q43: =IF(ISBLANK(J43),0,IF(AND(N46<=(J43/3),N46>=((J43/3)-(5%*(J43/3)))),((3*(O43*1000)*N46)/(L46*(M46*M46))),0)) -> 5.284444444 | R43: =IF(N46<((J43/3)-(5%*(J43/3))),"DESCARTADO","") ->  | S43: =IF(ISBLANK(I39),0,IF(P43>0,P43/I39*100,Q43/I39*100)) -> 125.8201058 | AA43: =IF(ISBLANK(O43),0,IF(O43="","",MAX(P43:Q46)-MIN(P43:Q46))) -> 5.284444444
K44: 2 | L44: 150 | M44: 150 | N44: 140
K45: 3 | L45: 150 | M45: 150 | N45: 150
K46: Promedio | L46: =IF(ISBLANK(L43:L45),0,(L43+L44+L45)/3) -> 150 | M46: =IF(ISBLANK(M43:M45),0,(M43+M44+M45)/3) -> 150 | N46: 145
G47: =F47+H47 -> 1900-01-28 | H47: 28 | I47: 4.2 | J47: 450 | K47: 1 | L47: 150 | M47: 150 | N47: 220 | O47: 49 | P47: =IF(ISBLANK(J47),0,IF(AND(N50>=J47/3,N50<=((J47/3)+J47/3)),((O47*1000)*J47)/(L50*(M50*M50)),0)) -> 6.533333333 | Q47: =IF(ISBLANK(J47),0,IF(AND(N50<=(J47/3),N50>=((J47/3)-(5%*(J47/3)))),((3*(O47*1000)*N50)/(L50*(M50*M50))),0)) -> 0 | R47: =IF(N50<((J47/3)-(5%*(J47/3))),"DESCARTADO","") ->  | S47: =IF(ISBLANK(I47),0,IF(P47>0,P47/I47*100,Q47/I47*100)) -> 155.5555556 | T47: =IF(S47=0,S51,IF(S51=0,S47,(S47+S51)/2)) -> 155.5555556 | U47: =IF(AA47=0,AA51,IF(AA51=0,AA47,MAX(AA47:AA51)-MIN(AA47:AA51))) -> 0 | V47: =IF(AA47=0,AA51,IF(AA51=0,AA47,AVERAGEA(P47,Q47,P51,Q51)*2)) -> 6.533333333 | W47: =IF(U47=0,0,IF(U47="","",U47/V47)*100) -> 0 | X47: =IF(W47=0,"-",IF(W47<16,"Precisión Conforme","Precisión No Conforme")) -> - | AA47: =IF(ISBLANK(O47),0,IF(O47="","",MAX(P47:Q50)-MIN(P47:Q50))) -> 6.533333333
K48: 2 | L48: 150 | M48: 150 | N48: 210
K49: 3 | L49: 150 | M49: 150 | N49: 200
K50: Promedio | L50: =IF(ISBLANK(L47:L49),0,(L47+L48+L49)/3) -> 150 | M50: =IF(ISBLANK(M47:M49),0,(M47+M48+M49)/3) -> 150 | N50: 210
J51: 450 | K51: 1 | L51: 150 | M51: 150 | N51: 189 | O51: 49 | P51: =IF(ISBLANK(J51),0,IF(AND(N54>=J51/3,N54<=((J51/3)+J51/3)),((O51*1000)*J51)/(L54*(M54*M54)),0)) -> 6.533333333 | Q51: =IF(ISBLANK(J51),0,IF(AND(N54<=(J51/3),N54>=((J51/3)-(5%*(J51/3)))),((3*(O51*1000)*N54)/(L54*(M54*M54))),0)) -> 0 | R51: =IF(N54<((J51/3)-(5%*(J51/3))),"DESCARTADO","") ->  | S51: =IF(ISBLANK(I47),0,IF(P51>0,P51/I47*100,Q51/I47*100)) -> 155.5555556 | AA51: =IF(ISBLANK(O51),0,IF(O51="","",MAX(P51:Q54)-MIN(P51:Q54))) -> 6.533333333
K52: 2 | L52: 150 | M52: 150 | N52: 199
K53: 3 | L53: 150 | M53: 150 | N53: 204
K54: Promedio | L54: =IF(ISBLANK(L51:L53),0,(L51+L52+L53)/3) -> 150 | M54: =IF(ISBLANK(M51:M53),0,(M51+M52+M53)/3) -> 150 | N54: 197.3333333
G55: =F55+H55 -> 1900-01-07 | H55: 7 | I55: 4.2 | J55: 450 | K55: 1 | L55: 153 | M55: 152 | N55: 150 | O55: 30 | P55: =IF(ISBLANK(J55),0,IF(AND(N58>=J55/3,N58<=((J55/3)+J55/3)),((O55*1000)*J55)/(L58*(M58*M58)),0)) -> 0 | Q55: =IF(ISBLANK(J55),0,IF(AND(N58<=(J55/3),N58>=((J55/3)-(5%*(J55/3)))),((3*(O55*1000)*N58)/(L58*(M58*M58))),0)) -> 3.7736739 | R55: =IF(N58<((J55/3)-(5%*(J55/3))),"DESCARTADO","") ->  | S55: =IF(ISBLANK(I55),0,IF(P55>0,P55/I55*100,Q55/I55*100)) -> 89.84937857 | T55: =IF(S55=0,S59,IF(S59=0,S55,(S55+S59)/2)) -> 94.13103849 | U55: =IF(AA55=0,AA59,IF(AA59=0,AA55,MAX(AA55:AA59)-MIN(AA55:AA59))) -> 0.3596594335 | V55: =IF(AA55=0,AA59,IF(AA59=0,AA55,AVERAGEA(P55,Q55,P59,Q59)*2)) -> 3.953503617 | W55: =IF(U55=0,0,IF(U55="","",U55/V55)*100) -> 9.097232945 | X55: =IF(W55=0,"-",IF(W55<16,"Precisión Conforme","Precisión No Conforme")) -> Precisión Conforme | AA55: =IF(ISBLANK(O55),0,IF(O55="","",MAX(P55:Q58)-MIN(P55:Q58))) -> 3.7736739
K56: 2 | L56: 150 | M56: 150 | N56: 140
K57: 3 | L57: 150 | M57: 152 | N57: 145
K58: Promedio | L58: =IF(ISBLANK(L55:L57),0,(L55+L56+L57)/3) -> 151 | M58: =IF(ISBLANK(M55:M57),0,(M55+M56+M57)/3) -> 151.3333333 | N58: 145
J59: 450 | K59: 1 | L59: 150 | M59: 150 | N59: 300 | O59: 31 | P59: =IF(ISBLANK(J59),0,IF(AND(N62>=J59/3,N62<=((J59/3)+J59/3)),((O59*1000)*J59)/(L62*(M62*M62)),0)) -> 4.133333333 | Q59: =IF(ISBLANK(J59),0,IF(AND(N62<=(J59/3),N62>=((J59/3)-(5%*(J59/3)))),((3*(O59*1000)*N62)/(L62*(M62*M62))),0)) -> 0 | R59: =IF(N62<((J59/3)-(5%*(J59/3))),"DESCARTADO","") ->  | S59: =IF(ISBLANK(I55),0,IF(P59>0,P59/I55*100,Q59/I55*100)) -> 98.41269841 | AA59: =IF(ISBLANK(O59),0,IF(O59="","",MAX(P59:Q62)-MIN(P59:Q62))) -> 4.133333333
K60: 2 | L60: 150 | M60: 150 | N60: 300
K61: 3 | L61: 150 | M61: 150 | N61: 300
K62: Promedio | L62: =IF(ISBLANK(L59:L61),0,(L59+L60+L61)/3) -> 150 | M62: =IF(ISBLANK(M59:M61),0,(M59+M60+M61)/3) -> 150 | N62: 300
G63: =F63+H63 -> 1900-01-14 | H63: 14 | I63: 4.2 | J63: 450 | K63: 1 | L63: 153 | M63: 152 | N63: 140 | O63: 40 | P63: =IF(ISBLANK(J63),0,IF(AND(N66>=J63/3,N66<=((J63/3)+J63/3)),((O63*1000)*J63)/(L66*(M66*M66)),0)) -> 0 | Q63: =IF(ISBLANK(J63),0,IF(AND(N66<=(J63/3),N66>=((J63/3)-(5%*(J63/3)))),((3*(O63*1000)*N66)/(L66*(M66*M66))),0)) -> 4.985297934 | R63: =IF(N66<((J63/3)-(5%*(J63/3))),"DESCARTADO","") ->  | S63: =IF(ISBLANK(I63),0,IF(P63>0,P63/I63*100,Q63/I63*100)) -> 118.6975698 | T63: =IF(S63=0,S67,IF(S67=0,S63,(S63+S67)/2)) -> 124.42815 | U63: =IF(AA63=0,AA67,IF(AA67=0,AA63,MAX(AA63:AA67)-MIN(AA63:AA67))) -> 0.4813687331 | V63: =IF(AA63=0,AA67,IF(AA67=0,AA63,AVERAGEA(P63,Q63,P67,Q67)*2)) -> 5.2259823 | W63: =IF(U63=0,0,IF(U63="","",U63/V63)*100) -> 9.211067039 | X63: =IF(W63=0,"-",IF(W63<16,"Precisión Conforme","Precisión No Conforme")) -> Precisión Conforme | AA63: =IF(ISBLANK(O63),0,IF(O63="","",MAX(P63:Q66)-MIN(P63:Q66))) -> 4.985297934
K64: 2 | L64: 150 | M64: 150 | N64: 141
K65: 3 | L65: 150 | M65: 152 | N65: 150
K66: Promedio | L66: =IF(ISBLANK(L63:L65),0,(L63+L64+L65)/3) -> 151 | M66: =IF(ISBLANK(M63:M65),0,(M63+M64+M65)/3) -> 151.3333333 | N66: 143.6666667
J67: 450 | K67: 1 | L67: 150 | M67: 150 | N67: 190 | O67: 41 | P67: =IF(ISBLANK(J67),0,IF(AND(N70>=J67/3,N70<=((J67/3)+J67/3)),((O67*1000)*J67)/(L70*(M70*M70)),0)) -> 5.466666667 | Q67: =IF(ISBLANK(J67),0,IF(AND(N70<=(J67/3),N70>=((J67/3)-(5%*(J67/3)))),((3*(O67*1000)*N70)/(L70*(M70*M70))),0)) -> 0 | R67: =IF(N70<((J67/3)-(5%*(J67/3))),"DESCARTADO","") ->  | S67: =IF(ISBLANK(I63),0,IF(P67>0,P67/I63*100,Q67/I63*100)) -> 130.1587302 | AA67: =IF(ISBLANK(O67),0,IF(O67="","",MAX(P67:Q70)-MIN(P67:Q70))) -> 5.466666667
K68: 2 | L68: 150 | M68: 150 | N68: 190
K69: 3 | L69: 150 | M69: 150 | N69: 190
K70: Promedio | L70: =IF(ISBLANK(L67:L69),0,(L67+L68+L69)/3) -> 150 | M70: =IF(ISBLANK(M67:M69),0,(M67+M68+M69)/3) -> 150 | N70: 190
